fUST/lending_fUST_20250524
["ID","MTS","AMOUNT","RATE_DAILY","PERIOD"]
[362161480,1748043052783,-239.16964589,0.00019632,2]
[362161481,1748043052792,-430.0,0.00019632,2]
[362161482,1748043052803,-430.0,0.00019632,2]
[362161483,1748043052813,-430.0,0.00019632,2]
[362161484,1748043052823,-430.0,0.00019632,2]
[362161485,1748043052834,-430.0,0.00019632,2]
[362161486,1748043052844,-430.0,0.00019632,2]
[362161487,1748043052855,-430.0,0.00019632,2]
[362161488,1748043052865,-430.0,0.00019632,2]
[362161489,1748043052875,-430.0,0.00019632,2]
[362161490,1748043052885,-430.0,0.00019632,2]
[362161491,1748043052895,-430.0,0.00019632,2]
[362161492,1748043052905,-430.0,0.00019633,2]
[362161493,1748043052915,-430.0,0.00019633,2]
[362161494,1748043052925,-430.0,0.00019633,2]
[362161495,1748043052935,-430.0,0.00019633,2]
[362161496,1748043052945,-188.28,0.00019633,2]
[362161497,1748043052955,-160.0,0.00019637,2]
[362161498,1748043052965,-1000.0,0.00019723,2]
[362161499,1748043052975,-722.43803725,0.00019826,2]
[362161500,1748043052988,-204.43660633,0.000199,2]
[362161501,1748043052999,-430.0,0.00019904,2]
[362161502,1748043053009,-430.0,0.00019904,2]
[362161503,1748043053019,-430.0,0.00019904,2]
[362161504,1748043053030,-430.0,0.00019904,2]
[362161505,1748043053040,-430.0,0.00019904,2]
[362161506,1748043053050,-430.0,0.00019904,2]
[362161507,1748043053060,-430.0,0.00019904,2]
[362161508,1748043053070,-430.0,0.00019904,2]
[362161509,1748043053080,-430.0,0.00019904,2]
[362161510,1748043053090,-430.0,0.00019905,2]
[362161511,1748043053100,-430.0,0.00019905,2]
[362161512,1748043053111,-430.0,0.00019905,2]
[362161513,1748043053121,-430.0,0.00019905,2]
[362161514,1748043053131,-430.0,0.00019905,2]
[362161515,1748043053141,-430.0,0.00019905,2]
[362161516,1748043053150,-430.0,0.00019905,2]
[362161517,1748043053161,-430.0,0.00019905,2]
[362161518,1748043053170,-430.0,0.00019905,2]
[362161519,1748043053181,-430.0,0.00019905,2]
[362161520,1748043053191,-430.0,0.00019905,2]
[362161521,1748043053201,-492.03,0.00019905,2]
[362161522,1748043053211,-430.0,0.00019905,2]
[362161523,1748043053221,-430.0,0.00019905,2]
[362161524,1748043053231,-430.0,0.00019905,2]
[362161525,1748043053242,-430.0,0.00019905,2]
[362161526,1748043053253,-430.0,0.00019905,2]
[362161527,1748043053262,-430.0,0.00019905,2]
[362161528,1748043053273,-430.0,0.00019905,2]
[362161529,1748043053282,-48.92078878,0.00019905,2]
[362161588,1748043103696,11464.1187123,0.00027397,120]
[362161699,1748043983572,159.918705,0.00027397,120]
[362161861,1748044232103,-5000.0,0.00017891,2]
[362161862,1748044232114,-500.0,0.00018255,2]
[362161863,1748044232124,-563.5667068,0.00018255,2]
[362161864,1748044232134,-500.0,0.00018255,2]
[362161865,1748044232143,-277.01640982,0.00018255,2]
[362161866,1748044232152,-500.0,0.00018255,2]
[362161867,1748044232161,-269.90833334,0.00018255,2]
[362161868,1748044232172,-230.09166666,0.00018255,2]
[362161869,1748044232182,-500.0,0.00018255,2]
[362161870,1748044232192,-500.0,0.00018255,2]
[362161871,1748044232201,-500.0,0.00018255,2]
[362161872,1748044232211,-500.0,0.00018255,2]
[362161873,1748044232220,-500.0,0.00018255,2]
[362161874,1748044232230,-159.27929246,0.00018255,2]
[362161875,1748044232242,-500.0,0.00018255,2]
[362161876,1748044232251,-132.749041,0.00018255,2]
[362161877,1748044232263,-367.250959,0.00018255,2]
[362161878,1748044232272,-500.0,0.00018255,2]
[362161879,1748044232280,-500.0,0.00018255,2]
[362161880,1748044232290,-500.0,0.00018255,2]
[362161881,1748044232300,-500.0,0.00018255,2]
[362161882,1748044232308,-500.0,0.00018255,2]
[362161883,1748044232318,-500.0,0.00018255,2]
[362161884,1748044232327,-500.0,0.00018255,2]
[362161885,1748044232336,-430.0,0.00018255,2]
[362161886,1748044232345,-430.0,0.00018255,2]
[362161887,1748044232355,-430.0,0.00018255,2]
[362161888,1748044232362,-430.0,0.00018255,2]
[362161889,1748044232372,-430.0,0.00018255,2]
[362161890,1748044232381,-567.35,0.00018255,2]
[362161891,1748044232391,-430.0,0.00018255,2]
[362161892,1748044232404,-430.0,0.00018255,2]
[362161893,1748044232413,-430.0,0.00018255,2]
[362161894,1748044232423,-430.0,0.00018255,2]
[362161895,1748044232432,-430.0,0.00018255,2]
[362161896,1748044232441,-430.0,0.00018255,2]
[362161897,1748044232448,-430.0,0.00018255,2]
[362161898,1748044232457,-430.0,0.00018255,2]
[362161899,1748044232466,-430.0,0.00018255,2]
[362161900,1748044232477,-430.0,0.00018255,2]
[362161901,1748044232490,-5943.54893286,0.00018255,2]
[362161902,1748044232502,-2366.97080641,0.00018255,2]
[362161903,1748044232529,-1070.6,0.00018255,2]
[362161924,1748044238656,-500.0,0.00018254,2]
[362161925,1748044238666,-351.0310325,0.00018254,2]
[362161927,1748044238675,-4491.83170177,0.00018255,2]
[362161968,1748044240384,-527.97,0.00018255,2]
[362161969,1748044240394,-695.89509834,0.00018255,2]
[362162021,1748044243063,-477.82745588,0.00018073,2]
[362162024,1748044243075,-4522.17254412,0.00018073,2]
[362162026,1748044243085,-2391.27714177,0.00018255,2]
[362162028,1748044243095,-391.64304039,0.00018256,2]
[362162030,1748044243104,-430.0,0.00018256,2]
[362162032,1748044243114,-430.0,0.00018256,2]
[362162034,1748044243124,-400.0,0.00018256,2]
[362162036,1748044243134,-430.0,0.00018256,2]
[362162038,1748044243143,-430.0,0.00018256,2]
[362162040,1748044243152,-430.0,0.00018256,2]
[362162042,1748044243161,-430.0,0.00018256,2]
[362162044,1748044243171,-430.0,0.00018256,2]
[362162046,1748044243180,-430.0,0.00018256,2]
[362162048,1748044243190,-430.0,0.00018256,2]
[362162051,1748044243199,-500.0,0.00018256,2]
[362162054,1748044243209,-500.0,0.00018256,2]
[362162057,1748044243218,-430.0,0.00018256,2]
[362162060,1748044243227,-430.0,0.00018256,2]
[362162063,1748044243237,-430.0,0.00018256,2]
[362162065,1748044243249,-430.0,0.00018256,2]
[362162068,1748044243258,-430.0,0.00018256,2]
[362162069,1748044243268,-430.0,0.00018256,2]
[362162070,1748044243277,-430.0,0.00018256,2]
[362162071,1748044243286,-430.0,0.00018256,2]
[362162073,1748044243295,-517.06,0.00018256,2]
[362162074,1748044243304,-430.0,0.00018256,2]
[362162076,1748044243313,-430.0,0.00018256,2]
[362162078,1748044243323,-430.0,0.00018256,2]
[362162080,1748044243333,-430.0,0.00018256,2]
[362162082,1748044243343,-430.0,0.00018256,2]
[362162084,1748044243353,-430.0,0.00018256,2]
[362162085,1748044243362,-430.0,0.00018256,2]
[362162086,1748044243372,-430.0,0.00018256,2]
[362162087,1748044243381,-430.0,0.00018256,2]
[362162088,1748044243391,-430.0,0.00018256,2]
[362162089,1748044243404,-430.0,0.00018256,2]
[362162090,1748044243413,-521.42349721,0.00018256,2]
[362162091,1748044243422,-430.0,0.00018256,2]
[362162092,1748044243431,-430.0,0.00018256,2]
[362162093,1748044243443,-453.66,0.00018256,2]
[362162094,1748044243451,-430.0,0.00018256,2]
[362162095,1748044243461,-430.0,0.00018256,2]
[362162096,1748044243470,-430.0,0.00018256,2]
[362162097,1748044243480,-430.0,0.00018256,2]
[362162098,1748044243492,-430.0,0.00018256,2]
[362162099,1748044243501,-430.0,0.00018256,2]
[362162100,1748044243511,-430.0,0.00018256,2]
[362162101,1748044243520,-430.0,0.00018256,2]
[362162102,1748044243529,-430.0,0.00018256,2]
[362162103,1748044243538,-430.0,0.00018256,2]
[362162104,1748044243547,-430.0,0.00018256,2]
[362162105,1748044243556,-430.0,0.00018256,2]
[362162106,1748044243565,-430.0,0.00018256,2]
[362162107,1748044243575,-430.0,0.00018256,2]
[362162108,1748044243584,-174.40956477,0.00018256,2]
[362162109,1748044243595,-430.0,0.00018256,2]
[362162110,1748044243604,-430.0,0.00018256,2]
[362162111,1748044243613,-430.0,0.00018256,2]
[362162112,1748044243622,-430.0,0.00018256,2]
[362162113,1748044243632,-430.0,0.00018256,2]
[362162114,1748044243641,-430.0,0.00018256,2]
[362162115,1748044243651,-430.0,0.00018256,2]
[362162116,1748044243660,-430.0,0.00018256,2]
[362162117,1748044243670,-507.45487003,0.00018256,2]
[362162118,1748044243798,-430.0,0.00018256,2]
[362162119,1748044243808,-430.0,0.00018256,2]
[362162120,1748044243818,-430.0,0.00018256,2]
[362162121,1748044243827,-430.0,0.00018256,2]
[362162122,1748044243837,-430.0,0.00018256,2]
[362162123,1748044243846,-430.0,0.00018256,2]
[362162124,1748044243855,-430.0,0.00018256,2]
[362162125,1748044243864,-430.0,0.00018256,2]
[362162126,1748044243874,-430.0,0.00018256,2]
[362162127,1748044243884,-430.0,0.00018256,2]
[362162128,1748044243894,-430.0,0.00018256,2]
[362162129,1748044243903,-430.0,0.00018256,2]
[362162130,1748044243913,-430.0,0.00018256,2]
[362162131,1748044243923,-430.0,0.00018256,2]
[362162132,1748044243932,-430.0,0.00018256,2]
[362162133,1748044243942,-430.0,0.00018256,2]
[362162134,1748044243951,-430.0,0.00018256,2]
[362162135,1748044243960,-430.0,0.00018256,2]
[362162136,1748044243969,-430.0,0.00018256,2]
[362162137,1748044243979,-430.0,0.00018256,2]
[362162138,1748044243988,-350.0,0.00018256,2]
[362162139,1748044243999,-400.0,0.00018256,2]
[362162140,1748044244008,-300.0,0.00018256,2]
[362162141,1748044244018,-430.0,0.00018256,2]
[362162142,1748044244028,-430.0,0.00018256,2]
[362162143,1748044244037,-430.0,0.00018256,2]
[362162144,1748044244047,-430.0,0.00018256,2]
[362162145,1748044244056,-430.0,0.00018256,2]
[362162146,1748044244066,-450.0,0.00018256,2]
[362162147,1748044244075,-430.0,0.00018256,2]
[362162148,1748044244084,-430.0,0.00018256,2]
[362162149,1748044244093,-430.0,0.00018256,2]
[362162150,1748044244104,-430.0,0.00018257,2]
[362162151,1748044244113,-430.0,0.00018257,2]
[362162152,1748044244122,-430.0,0.00018257,2]
[362162153,1748044244132,-430.0,0.00018257,2]
[362162154,1748044244141,-430.0,0.00018257,2]
[362162155,1748044244151,-500.0,0.00018257,2]
[362162156,1748044244160,-430.0,0.00018257,2]
[362162157,1748044244170,-430.0,0.00018257,2]
[362162158,1748044244179,-430.0,0.00018257,2]
[362162159,1748044244188,-430.0,0.00018257,2]
[362162160,1748044244197,-430.0,0.00018257,2]
[362162161,1748044244206,-500.0,0.00018257,2]
[362162162,1748044244215,-430.0,0.00018257,2]
[362162163,1748044244225,-430.0,0.00018257,2]
[362162164,1748044244234,-430.0,0.00018257,2]
[362162165,1748044244245,-430.0,0.00018257,2]
[362162166,1748044244254,-430.0,0.00018257,2]
[362162167,1748044244263,-430.0,0.00018257,2]
[362162168,1748044244273,-193.36386932,0.00018257,2]
[362162169,1748044244283,-430.0,0.00018257,2]
[362162170,1748044244292,-430.0,0.00018257,2]
[362162171,1748044244301,-430.0,0.00018257,2]
[362162172,1748044244310,-430.0,0.00018257,2]
[362162173,1748044244319,-187.60373835,0.00018257,2]
[362162174,1748044244328,-430.0,0.00018257,2]
[362162175,1748044244337,-430.0,0.00018257,2]
[362162176,1748044244346,-430.0,0.00018257,2]
[362162177,1748044244355,-430.0,0.00018257,2]
[362162178,1748044244365,-500.0,0.00018257,2]
[362162179,1748044244374,-430.0,0.00018257,2]
[362162180,1748044244384,-430.0,0.00018257,2]
[362162181,1748044244393,-559.87979168,0.00018257,2]
[362162182,1748044244402,-500.0,0.00018257,2]
[362162183,1748044244414,-430.0,0.00018257,2]
[362162184,1748044244423,-430.0,0.00018257,2]
[362162185,1748044244432,-430.0,0.00018257,2]
[362162186,1748044244441,-430.0,0.00018257,2]
[362162187,1748044244451,-430.0,0.00018257,2]
[362162188,1748044244460,-430.0,0.00018257,2]
[362162189,1748044244469,-430.0,0.00018257,2]
[362162190,1748044244478,-430.0,0.00018257,2]
[362162191,1748044244487,-430.0,0.00018257,2]
[362162192,1748044244499,-430.0,0.00018257,2]
[362162193,1748044244508,-500.0,0.00018257,2]
[362162194,1748044244517,-464.95807718,0.00018257,2]
[362162195,1748044244526,-500.0,0.00018257,2]
[362162196,1748044244535,-272.31866568,0.00018257,2]
[362162197,1748044244545,-500.0,0.00018257,2]
[362162198,1748044244554,-500.0,0.00018257,2]
[362162199,1748044244563,-430.0,0.00018258,2]
[362162200,1748044244572,-430.0,0.00018258,2]
[362162201,1748044244581,-430.0,0.00018258,2]
[362162202,1748044244591,-430.0,0.00018258,2]
[362162203,1748044244601,-430.0,0.00018258,2]
[362162204,1748044244610,-500.0,0.00018258,2]
[362162205,1748044244620,-430.0,0.00018258,2]
[362162206,1748044244629,-430.0,0.00018258,2]
[362162207,1748044244639,-430.0,0.00018258,2]
[362162208,1748044244648,-430.0,0.00018258,2]
[362162209,1748044244657,-500.0,0.00018258,2]
[362162210,1748044244667,-430.0,0.00018258,2]
[362162211,1748044244676,-430.0,0.00018258,2]
[362162212,1748044244686,-430.0,0.00018258,2]
[362162213,1748044244695,-430.0,0.00018258,2]
[362162214,1748044244704,-444.74870409,0.00018258,2]
[362162215,1748044244714,-490.0,0.00018258,2]
[362162216,1748044244723,-569.24265012,0.00018258,2]
[362162217,1748044244734,-430.0,0.00018258,2]
[362162218,1748044244745,-430.0,0.00018258,2]
[362162219,1748044244756,-208.50000001,0.00018258,2]
[362162220,1748044244767,-430.0,0.00018258,2]
[362162221,1748044244777,-430.0,0.00018258,2]
[362162222,1748044244787,-430.0,0.00018258,2]
[362162223,1748044244796,-430.0,0.00018258,2]
[362162224,1748044244806,-430.0,0.00018258,2]
[362162225,1748044244815,-500.0,0.00018259,2]
[362162226,1748044244824,-613.48,0.00018259,2]
[362162227,1748044244834,-400.0,0.0001826,2]
[362162228,1748044244843,-450.0,0.0001826,2]
[362162229,1748044244853,-450.0,0.0001826,2]
[362162230,1748044244862,-509.18,0.0001826,2]
[362162231,1748044244871,-430.0,0.0001826,2]
[362162232,1748044244881,-430.0,0.0001826,2]
[362162233,1748044244890,-430.0,0.0001826,2]
[362162234,1748044244899,-430.0,0.0001826,2]
[362162235,1748044244909,-430.0,0.0001826,2]
[362162236,1748044244919,-430.0,0.0001826,2]
[362162237,1748044244928,-484.03973725,0.0001826,2]
[362162238,1748044244937,-500.0,0.0001826,2]
[362162239,1748044244947,-500.0,0.0001826,2]
[362162240,1748044244957,-430.0,0.0001826,2]
[362162241,1748044244967,-430.0,0.0001826,2]
[362162242,1748044244976,-430.0,0.0001826,2]
[362162243,1748044244985,-430.0,0.0001826,2]
[362162244,1748044244997,-500.0,0.00018261,2]
[362162245,1748044245006,-500.0,0.00018261,2]
[362162246,1748044245015,-500.0,0.00018262,2]
[362162247,1748044245025,-500.0,0.00018262,2]
[362162248,1748044245035,-422.85710789,0.00018263,2]
[362162249,1748044245044,-500.0,0.00018263,2]
[362162250,1748044245054,-500.0,0.00018267,2]
[362162251,1748044245064,-169.518205,0.00018315,2]
[362162252,1748044245073,-430.0,0.00018529,2]
[362162253,1748044245083,-430.0,0.00018529,2]
[362162254,1748044245092,-430.0,0.00018529,2]
[362162255,1748044245102,-430.0,0.00018529,2]
[362162256,1748044245111,-567.35,0.00018529,2]
[362162257,1748044245120,-430.0,0.00018529,2]
[362162258,1748044245130,-430.0,0.00018529,2]
[362162259,1748044245139,-430.0,0.00018529,2]
[362162260,1748044245148,-430.0,0.00018529,2]
[362162261,1748044245158,-430.0,0.00018529,2]
[362162262,1748044245167,-430.0,0.00018529,2]
[362162263,1748044245176,-450.0,0.0001853,2]
[362162264,1748044245186,-430.0,0.0001853,2]
[362162265,1748044245196,-430.0,0.0001853,2]
[362162266,1748044245206,-430.0,0.0001853,2]
[362162267,1748044245215,-430.0,0.0001853,2]
[362162268,1748044245224,-430.0,0.0001853,2]
[362162269,1748044245233,-430.0,0.0001853,2]
[362162270,1748044245244,-430.0,0.0001853,2]
[362162271,1748044245253,-430.0,0.0001853,2]
[362162272,1748044245262,-430.0,0.0001853,2]
[362162273,1748044245275,-430.0,0.0001853,2]
[362162274,1748044245285,-453.66,0.0001853,2]
[362162275,1748044245294,-430.0,0.0001853,2]
[362162276,1748044245303,-430.0,0.0001853,2]
[362162277,1748044245312,-430.0,0.0001853,2]
[362162278,1748044245323,-430.0,0.0001853,2]
[362162279,1748044245333,-527.4,0.0001853,2]
[362162280,1748044245342,-430.0,0.0001853,2]
[362162281,1748044245351,-430.0,0.0001853,2]
[362162282,1748044245362,-430.0,0.0001853,2]
[362162283,1748044245372,-430.0,0.0001853,2]
[362162284,1748044245381,-430.0,0.0001853,2]
[362162285,1748044245391,-430.0,0.0001853,2]
[362162286,1748044245400,-430.0,0.0001853,2]
[362162287,1748044245414,-430.0,0.0001853,2]
[362162288,1748044245424,-430.0,0.0001853,2]
[362162289,1748044245434,-430.0,0.0001853,2]
[362162290,1748044245444,-572.33961661,0.0001853,2]
[362162291,1748044245454,-430.0,0.0001853,2]
[362162292,1748044245464,-430.0,0.0001853,2]
[362162293,1748044245474,-430.0,0.0001853,2]
[362162294,1748044245483,-430.0,0.0001853,2]
[362162295,1748044245494,-430.0,0.00018531,2]
[362162296,1748044245503,-430.0,0.00018531,2]
[362162297,1748044245512,-574.63,0.00018531,2]
[362162298,1748044245521,-430.0,0.00018531,2]
[362162299,1748044245531,-534.95,0.00018531,2]
[362162300,1748044245540,-430.0,0.00018531,2]
[362162301,1748044245550,-430.0,0.00018531,2]
[362162302,1748044245559,-430.0,0.00018531,2]
[362162303,1748044245568,-430.0,0.00018531,2]
[362162304,1748044245577,-430.0,0.00018531,2]
[362162305,1748044245587,-430.0,0.00018531,2]
[362162306,1748044245596,-267.95451953,0.00018531,2]
[362162318,1748044245698,-162.04548047,0.00018531,2]
[362162320,1748044245707,-430.0,0.00018531,2]
[362162323,1748044245717,-57.78427793,0.00018531,2]
[362162364,1748044246149,-160.0,0.00018263,2]
[362162366,1748044246158,-372.21572207,0.00018531,2]
[362162368,1748044246168,-430.0,0.00018532,2]
[362162370,1748044246178,-430.0,0.00018532,2]
[362162372,1748044246187,-430.0,0.00018532,2]
[362162373,1748044246196,-430.0,0.00018532,2]
[362162375,1748044246207,-430.0,0.00018532,2]
[362162377,1748044246216,-232.95110684,0.00018534,2]
[362162378,1748044246226,-430.0,0.00018534,2]
[362162380,1748044246235,-430.0,0.00018534,2]
[362162382,1748044246246,-500.0,0.00018534,2]
[362162384,1748044246256,-430.0,0.00018534,2]
[362162386,1748044246265,-500.0,0.00018536,2]
[362162388,1748044246275,-500.0,0.00018541,2]
[362162390,1748044246285,-160.0,0.00018583,2]
[362162392,1748044246294,-12647.66147447,0.00018583,2]
[362162394,1748044246304,-894.64583333,0.00018583,2]
[362162396,1748044246314,-500.0,0.00018695,2]
[362162398,1748044246323,-430.0,0.00018803,2]
[362162400,1748044246333,-455.15191903,0.00018803,2]
[362162402,1748044246342,-430.0,0.00018803,2]
[362162404,1748044246351,-567.35,0.00018803,2]
[362162406,1748044246361,-438.44699328,0.00018803,2]
[362162408,1748044246374,-75.17300672,0.00018803,2]
[362162410,1748044246383,-529.1,0.00018803,2]
[362162411,1748044246392,-430.0,0.00018803,2]
[362162412,1748044246406,-430.0,0.00018803,2]
[362162413,1748044246415,-430.0,0.00018803,2]
[362162414,1748044246425,-430.0,0.00018803,2]
[362162415,1748044246434,-430.0,0.00018804,2]
[362162416,1748044246454,-430.0,0.00018804,2]
[362162417,1748044246469,-430.0,0.00018804,2]
[362162418,1748044246480,-430.0,0.00018804,2]
[362162419,1748044246491,-430.0,0.00018804,2]
[362162420,1748044246503,-430.0,0.00018804,2]
[362162421,1748044246513,-430.0,0.00018804,2]
[362162422,1748044246523,-430.0,0.00018804,2]
[362162423,1748044246532,-453.66,0.00018804,2]
[362162424,1748044246542,-430.0,0.00018804,2]
[362162425,1748044246552,-430.0,0.00018804,2]
[362162426,1748044246561,-430.0,0.00018804,2]
[362162427,1748044246571,-430.0,0.00018804,2]
[362162428,1748044246581,-430.0,0.00018804,2]
[362162429,1748044246591,-178.02,0.00018804,2]
[362162430,1748044246745,-430.0,0.00018804,2]
[362162431,1748044246755,-430.0,0.00018804,2]
[362162432,1748044246765,-430.0,0.00018804,2]
[362162433,1748044246775,-186.21,0.00018804,2]
[362162434,1748044246784,-430.0,0.00018804,2]
[362162435,1748044246794,-430.0,0.00018804,2]
[362162436,1748044246804,-430.0,0.00018804,2]
[362162437,1748044246814,-430.0,0.00018805,2]
[362162438,1748044246823,-430.0,0.00018805,2]
[362162439,1748044246834,-430.0,0.00018805,2]
[362162440,1748044246844,-430.0,0.00018805,2]
[362162441,1748044246853,-430.0,0.00018805,2]
[362162442,1748044246863,-430.0,0.00018805,2]
[362162443,1748044246873,-430.0,0.00018805,2]
[362162444,1748044246883,-430.0,0.00018805,2]
[362162445,1748044246893,-430.0,0.00018805,2]
[362162446,1748044246903,-430.0,0.00018805,2]
[362162447,1748044246913,-430.0,0.00018806,2]
[362162448,1748044246922,-430.0,0.00018806,2]
[362162449,1748044246931,-430.0,0.00018806,2]
[362162450,1748044246941,-430.0,0.00018806,2]
[362162451,1748044246951,-430.0,0.00018808,2]
[362162452,1748044246961,-430.0,0.00018808,2]
[362162453,1748044246971,-430.0,0.00018808,2]
[362162454,1748044246981,-500.0,0.00018809,2]
[362162455,1748044246991,-500.0,0.00018815,2]
[362162456,1748044247003,-204.43660633,0.000189,2]
[362162457,1748044247013,-500.0,0.00019037,2]
[362162458,1748044247028,-430.0,0.00019077,2]
[362162459,1748044247038,-430.0,0.00019077,2]
[362162460,1748044247048,-567.35,0.00019077,2]
[362162461,1748044247058,-430.0,0.00019077,2]
[362162462,1748044247069,-430.0,0.00019077,2]
[362162463,1748044247079,-430.0,0.00019077,2]
[362162464,1748044247089,-430.0,0.00019078,2]
[362162465,1748044247100,-430.0,0.00019078,2]
[362162466,1748044247111,-430.0,0.00019078,2]
[362162467,1748044247121,-430.0,0.00019078,2]
[362162468,1748044247130,-256.92283964,0.00019078,2]
[362162469,1748044247140,-158.54414029,0.00019078,2]
[362162470,1748044247150,-498.75462438,0.00019078,2]
[362162471,1748044247160,-430.0,0.00019078,2]
[362162472,1748044247170,-453.66,0.00019078,2]
[362162473,1748044247181,-430.0,0.00019078,2]
[362162474,1748044247191,-430.0,0.00019078,2]
[362162475,1748044247201,-430.0,0.00019078,2]
[362162476,1748044247211,-513.0,0.00019078,2]
[362162477,1748044247221,-430.0,0.00019078,2]
[362162478,1748044247231,-430.0,0.00019078,2]
[362162479,1748044247241,-430.0,0.00019078,2]
[362162480,1748044247252,-430.0,0.00019078,2]
[362162481,1748044247262,-430.0,0.00019078,2]
[362162482,1748044247272,-430.0,0.00019078,2]
[362162483,1748044247282,-430.0,0.00019079,2]
[362162484,1748044247293,-291.32272123,0.00019079,2]
[362162485,1748044247303,-430.0,0.00019079,2]
[362162486,1748044247314,-430.0,0.00019079,2]
[362162487,1748044247324,-430.0,0.00019079,2]
[362162488,1748044247334,-430.0,0.00019079,2]
[362162489,1748044247344,-171.07533528,0.00019079,2]
[362162490,1748044247354,-430.0,0.00019079,2]
[362162491,1748044247363,-430.0,0.00019079,2]
[362162492,1748044247373,-430.0,0.0001908,2]
[362162493,1748044247384,-430.0,0.0001908,2]
[362162494,1748044247394,-430.0,0.00019082,2]
[362162495,1748044247403,-430.0,0.00019082,2]
[362162496,1748044247416,-430.56176309,0.00019082,2]
[362162497,1748044247426,-500.0,0.00019083,2]
[362162498,1748044247436,-500.0,0.00019123,2]
[362162499,1748044247445,-18.41041519,0.00019329,2]
[362162501,1748044257411,-220.0,0.00013562,2]
[362162502,1748044259688,-220.0,0.00013562,2]
[362162503,1748044261252,-273.52668646,0.00013562,2]
[362162504,1748044262796,-273.52668646,0.00013562,2]
[362162505,1748044264751,-273.52668646,0.00013562,2]
[362162506,1748044267357,-273.52668646,0.00013562,2]
[362162507,1748044269515,-273.52668646,0.00013562,2]
[362162508,1748044272689,-273.52668646,0.00013562,2]
[362162509,1748044274838,-273.52668646,0.00013562,2]
[362162510,1748044277181,-164.67862398,0.00013562,2]
[362162511,1748044278618,-164.67862398,0.00013562,2]
[362162512,1748044281965,-200.05319341,0.00013562,2]
[362162516,1748044284560,-45.28631278,0.00013562,2]
[362162517,1748044284586,-159.807577,0.00013699,2]
[362162531,1748044392873,60000.0,0.000258,30]
[362162591,1748044477139,14044.80962714,0.0002739,120]
[362162628,1748044824619,223731.89,0.00027397,120]
[362162630,1748044831851,200.0,0.00027203,120]
[362162632,1748044891037,200.0,0.00026837,120]
[362162633,1748044951059,200.0,0.00026352,120]
[362162634,1748044969770,2000.0,0.00025802,30]
[362162635,1748044970227,1827.8,0.00025802,30]
[362162636,1748045011048,200.0,0.00025705,120]
[362162638,1748045064284,159.918705,0.00027397,120]
[362162639,1748045071326,200.0,0.00027033,120]
[362162642,1748045132031,200.0,0.00026215,120]
[362162650,1748045191321,200.0,0.00025467,120]
[362162653,1748045213873,10463.35,0.00025802,30]
[362162654,1748045223188,150105.0,0.00027397,120]
[362162678,1748045249078,188.0,0.00027397,120]